fUSD/lending_fUSD_20240427
["ID","MTS","AMOUNT","RATE_DAILY","PERIOD"]
[323759578,1714252240769,-339.89896657,0.0001299,2]
[323759579,1714252240778,-313.84557091,0.00012998,2]
[323759580,1714252240787,-207.90792551,0.00012998,2]
[323759581,1714252240796,-710.33944675,0.00012998,2]
[323759582,1714252240806,-1351.89634566,0.00012998,2]
[323759583,1714252240815,-2628.47800925,0.00012998,2]
[323759584,1714252240824,-3853.065023,0.00012999,2]
[323759585,1714252240834,-2487.8444333,0.00012999,2]
[323759586,1714252240843,-150.01,0.00012999,2]
[323759587,1714252240852,-1814.84566289,0.00012999,2]
[323759588,1714252240861,-1184502.18325991,0.00013,2]
[323759589,1714252240877,-974.08067741,0.00013,2]
[323759592,1714252240916,-611179.47931174,0.00013,2]
[323759594,1714252240925,-2646907.35018388,0.00013,2]
[323759596,1714252240936,-63639.27000877,0.00013,2]
[323759608,1714252241036,-1709.28300169,0.00013,2]
[323759627,1714252241578,-1240.081105,0.0001277,2]
[323759628,1714252241588,-56796.51903606,0.00013,2]
[323759629,1714252241602,-35786.95976804,0.00013,2]
[323759630,1714252241643,-299.99940964,0.00013,2]
[323759631,1714252241660,-358.59593088,0.00013,2]
[323759632,1714252241677,-6187.4,0.00013,2]
[323759633,1714252241691,-39056.60810949,0.00013,2]
[323759634,1714252241704,-10789.92511853,0.00013,2]
[323759635,1714252241717,-1067.5,0.00013,2]
[323759649,1714252243469,-219.89815157,0.00012769,2]
[323759650,1714252243479,-737.34622603,0.0001277,2]
[323759651,1714252243629,-321.25185812,0.0001277,2]
[323759652,1714252243640,-181.48302085,0.0001277,2]
[323759653,1714252243649,-112227.30004846,0.00013,2]
[323759663,1714252247266,-363.38739989,0.00012769,2]
[323759664,1714252247277,-1116.14510011,0.00012999,2]
[323759665,1714252247308,-284.85233246,0.00012999,2]
[323759666,1714252247317,-805.50066754,0.00013,2]
[323762292,1714252481641,111083.0,0.00025099,120]
[323762427,1714252829529,1495.01,8.219e-05,2]
[323762428,1714252884757,288.56832451,8.219e-05,2]
[323762429,1714252885692,365.94145926,8.219e-05,2]
[323762430,1714252886230,7502.23409447,8.219e-05,2]
[323762431,1714252887180,1472.230329,8.219e-05,2]
[323762432,1714252888402,943.51586166,8.219e-05,2]
[323762433,1714252888801,361.4070713,8.219e-05,2]
[323762434,1714252889341,155.0,8.219e-05,2]
[323762435,1714252890311,155.0,8.219e-05,2]
[323762436,1714252890344,173.13094208,8.219e-05,2]
[323762437,1714252890685,20179.52552551,8.219e-05,2]
[323762438,1714252891835,155.0,8.219e-05,2]
[323762439,1714252893612,399.42152301,8.219e-05,2]
[323762440,1714252895390,546441.17118594,8.219e-05,2]
[323762441,1714252898134,437.49944981,8.219e-05,2]
[323762442,1714252903765,173.13094208,8.219e-05,2]
[323762443,1714252904224,7502.23409447,8.219e-05,2]
[323762444,1714252904404,943.51586166,8.219e-05,2]
[323762445,1714252904753,288.56832451,8.219e-05,2]
[323762446,1714252904800,361.4070713,8.219e-05,2]
[323762447,1714252907103,1472.230329,8.219e-05,2]
[323762448,1714252907326,205.88387895,8.219e-05,2]
[323762449,1714252909703,155.83158027,8.219e-05,2]
[323762450,1714252909844,155.0,8.219e-05,2]
[323762451,1714252910682,17584.46236373,8.219e-05,2]
[323762452,1714252911394,219083.95284164,8.219e-05,2]
[323762453,1714252913621,399.42152301,8.219e-05,2]
[323762454,1714252920236,7502.23409447,8.219e-05,2]
[323762455,1714252920403,951.81048359,8.219e-05,2]
[323762456,1714252924855,361.4070713,8.219e-05,2]
[323762457,1714252925094,1482.69309674,8.219e-05,2]
[323762458,1714252925782,159.5704553,8.219e-05,2]
[323762459,1714252926762,418.78016707,8.219e-05,2]
[323762460,1714252929625,399.42152301,8.219e-05,2]
[323762461,1714252935840,249.91868664,8.219e-05,2]
[323762462,1714252940264,7502.23409447,8.219e-05,2]
[323762463,1714252940815,361.4070713,8.219e-05,2]
[323762464,1714252953636,399.42152301,8.219e-05,2]
[323762465,1714252962234,3343.56196721,8.219e-05,2]
[323762466,1714252966816,361.4070713,8.219e-05,2]
[323762467,1714252971635,398.84931423,8.219e-05,2]
[323762468,1714252986832,180.91476694,8.219e-05,2]
[323762469,1714253000216,155.18,0.0001063,10]
[323762476,1714253273437,1061.20461407,8.501e-05,2]
[323762477,1714253274632,1995.6221796,8.501e-05,2]
[323762478,1714253275625,155.0,8.501e-05,2]
[323762480,1714253302350,363.92077602,8.501e-05,2]
[323762481,1714253312772,363.38739989,8.501e-05,2]
[323762487,1714253342695,1450.36,8.219e-05,2]
[323762553,1714253431493,-607.99923015,8.504e-05,2]
[323762554,1714253431502,-587.71,9.618e-05,2]
[323762555,1714253431512,-200.0,9.664e-05,2]
[323762556,1714253431522,-2206.66,9.67e-05,2]
[323762557,1714253431531,-2308.005,9.687e-05,2]
[323762558,1714253431541,-150.0,9.778e-05,2]
[323762559,1714253431551,-150.0,9.778e-05,2]
[323762560,1714253431561,-2852.94,9.779e-05,2]
[323762561,1714253431570,-1500.0,9.779e-05,2]
[323762562,1714253431579,-9155.88962977,9.784e-05,2]
[323762563,1714253431593,-844.00971584,9.784e-05,2]
[323762564,1714253431604,-678.3617778,9.784e-05,2]
[323762565,1714253431616,-9346.54938718,9.784e-05,2]
[323762566,1714253431632,-3875.18948941,9.784e-05,2]
[323762567,1714253431642,-188.6,9.789e-05,2]
[323762568,1714253431654,-250.0,9.799e-05,2]
[323762569,1714253431665,-169.65,9.893e-05,2]
[323762570,1714253431673,-3028.1,9.959e-05,2]
[323762571,1714253431682,-224.99,9.959e-05,2]
[323762572,1714253431691,-698.28,9.959e-05,2]
[323762573,1714253431700,-155.0,0.00010064,2]
[323762574,1714253431709,-169.65,0.00010065,2]
[323762575,1714253431718,-169.65,0.00010237,2]
[323762576,1714253431727,-169.65,0.00010409,2]
[323762577,1714253431735,-293.49,0.00010434,2]
[323762578,1714253431744,-365.84,0.00010434,2]
[323762579,1714253431753,-150.99,0.00010434,2]
[323762580,1714253431762,-1450.36,0.00010457,2]
[323762581,1714253431772,-150.99,0.00010513,2]
[323762582,1714253431781,-54376.377,0.0001053,2]
[323762583,1714253431790,-762.978,0.0001053,2]
[323762584,1714253431799,-710.33944675,0.00010628,2]
[323762585,1714253431808,-499.99,0.00010628,2]
[323762586,1714253431817,-1002.20182295,0.00010629,2]
[323762587,1714253431827,-252.49467778,0.00010629,2]
[323762588,1714253431836,-155.0,0.00010629,2]
[323762589,1714253431845,-150.99,0.00010629,2]
[323762590,1714253431854,-3306.19219812,0.00010629,2]
[323762591,1714253431865,-408.68643751,0.0001063,2]
[323762592,1714253431875,-373.04,0.0001072,2]
[323762593,1714253431884,-587.71,0.00010821,2]
[323762594,1714253431893,-155.0,0.000109,2]
[323762595,1714253431903,-961.05341164,0.000109,2]
[323762596,1714253431912,-2500.0,0.000109,2]
[323762597,1714253431922,-202.20660029,0.00010913,2]
[323762598,1714253431932,-189.4487503,0.00010913,2]
[323762599,1714253431942,-500.0,0.00010958,2]
[323762600,1714253431951,-1253.48,0.00010959,3]
[323762601,1714253431961,-5815.84788719,0.0001096,2]
[323762602,1714253431970,-317.01746459,0.00010998,2]
[323762603,1714253431980,-294.93806784,0.00010998,2]
[323762604,1714253431990,-951.16784658,0.00010998,2]
[323762605,1714253431999,-199.82846321,0.00010998,2]
[323762606,1714253432010,-243.86181405,0.00010998,2]
[323762607,1714253432020,-1242.50224029,0.00010998,2]
[323762608,1714253432030,-436.94514201,0.00010999,2]
[323762609,1714253432040,-1085356.51029693,0.00011,2]
[323762610,1714253432049,-188.6,0.00011013,2]
[323762611,1714253432058,-165.86,0.00011262,2]
[323762612,1714253432068,-165.86,0.00011318,2]
[323762613,1714253432077,-189.44875029,0.00011907,2]
[323762614,1714253432087,-5000.0,0.00012,2]
[323762615,1714253432096,-409.2085642,0.00012,2]
[323762616,1714253432106,-587.71,0.00012023,2]
[323762617,1714253432115,-200.91,0.00012055,2]
[323762618,1714253432125,-373.04,0.0001206,2]
[323762619,1714253432135,-5815.84788715,0.00012227,2]
[323762620,1714253432146,-188.6,0.00012236,2]
[323762621,1714253432155,-755.942,0.00012296,2]
[323762623,1714253432164,-1857.0,0.00012296,2]
[323762625,1714253432174,-414.0,0.00012296,2]
[323762626,1714253432184,-1001.0,0.00012301,2]
[323762628,1714253432194,-32751.81043608,0.000125,2]
[323762631,1714253432203,-2852.94,0.00012519,2]
[323762632,1714253432213,-1450.36,0.00012696,2]
[323762635,1714253432223,-3040.85221247,0.000128,2]
[323762636,1714253432232,-432.50796511,0.000128,2]
[323762639,1714253432242,-902.14205126,0.000128,2]
[323762640,1714253432252,-1000.0,0.00012895,2]
[323762642,1714253432261,-500.0,0.00012895,2]
[323762644,1714253432271,-1000.0,0.00012896,2]
[323762645,1714253432280,-500.0,0.00012896,2]
[323762646,1714253432290,-176.35323577,0.000129,2]
[323762647,1714253432300,-5334.0655,0.000129,2]
[323762648,1714253432310,-1000.0,0.000129,2]
[323762649,1714253432320,-10000.0,0.000129,2]
[323762650,1714253432331,-189.44875029,0.000129,2]
[323762651,1714253432341,-1001.0,0.00012986,2]
[323762652,1714253432351,-2220.0,0.0001299,2]
[323762653,1714253432360,-182.0,0.0001299,2]
[323762654,1714253432370,-966.28472381,0.00012997,2]
[323762655,1714253432379,-168.23654204,0.00012997,2]
[323762656,1714253432388,-1138.3136395,0.00012998,2]
[323762657,1714253432398,-2344.5899017,0.00012998,2]
[323762658,1714253432407,-1400.99743257,0.00012999,2]
[323762659,1714253432589,-599551.2932714,0.00013,2]
[323762660,1714253432657,-858.85640371,0.00013,2]
[323762661,1714253432670,-858.16390953,0.00013,2]
[323762662,1714253432696,-2124.5325917,0.00013,2]
[323762675,1714253438136,-1702.20964643,0.00013,2]
[323762676,1714253438148,-1549.163005,0.00013,2]
[323762677,1714253438159,-4722.76454072,0.00013,2]
[323762678,1714253438171,-285.70748418,0.00013,2]
[323762679,1714253438182,-1783728.87303366,0.00013,2]
[323762680,1714253438191,-1781941.97259315,0.00013,2]
[323762681,1714253438447,-313648.60130748,0.00013,2]
[323762682,1714253438458,-2000.0,0.00013,2]
[323762683,1714253438471,-151.23,0.00013,2]
[323762684,1714253438481,-470.01144628,0.00013,2]
[323762685,1714253438490,-2873.10127278,0.00013,2]
[323762686,1714253438502,-88012.76158696,0.00013,2]
[323762687,1714253438515,-6128.0,0.00013,2]
[323762688,1714253438526,-1266.48468899,0.00013,2]
[323762689,1714253438537,-494.72760592,0.00013,2]
[323762690,1714253438548,-421.399227,0.00013,2]
[323762692,1714253439558,-700.49871629,0.00012999,2]
[323762693,1714253439569,-5925.01275639,0.00013,2]
[323762694,1714253439580,-3071.00803848,0.00013,2]
[323762695,1714253439615,-563.96311532,0.00013,2]
[323762696,1714253439676,-848.067256,0.00013,2]
[323762697,1714253439687,-976.68977929,0.00013,2]
[323762698,1714253439698,-1466.36281864,0.00013,2]
[323762699,1714253439731,-3969.32580454,0.00013,2]
[323762700,1714253439742,-382.37,0.00013,2]
[323762701,1714253439753,-3138.91050702,0.00013,2]
[323762702,1714253439765,-560.58454009,0.00013,2]
[323762703,1714253439776,-2714.31273662,0.00013,2]
[323762704,1714253439895,-213253.48308704,0.00013,2]
[323762705,1714253439904,-11732.86775359,0.00013,2]
[323762706,1714253439915,-45649.28707285,0.00013,2]
[323762786,1714253442821,-403.22850324,0.00013,2]
[323762787,1714253442878,-41747.06031625,0.00013,2]
[323762791,1714253445539,-1242.50224029,0.00012999,2]
[323762792,1714253445549,-502.41142535,0.00013,2]
[323762793,1714253445599,-667.0206,0.000109,2]
[323762794,1714253445609,-35001.13568408,0.00013,2]
[323762795,1714253445622,-14970.16065043,0.00013,2]
[323762796,1714253445635,-28817.24526519,0.00013,2]
[323762797,1714253445645,-1748.23425053,0.00013,2]
[323762798,1714253445654,-70908.90209551,0.00013,2]
[323762799,1714253445773,-335.25000385,0.00013,2]
[323762800,1714253445785,-352.7727058,0.00013,2]
[323762801,1714253445804,-295.12565298,0.00013,2]
[323762804,1714254405165,10633.71560385,0.000251,120]
[323762839,1714254631725,-527.20251454,9.636e-05,2]
[323762841,1714254631735,-444.82300181,9.637e-05,2]
[323762843,1714254631745,-19448.25839854,9.638e-05,2]
[323762845,1714254631755,-1369.04,9.639e-05,2]
[323762847,1714254631766,-408.54466003,0.0001,2]
[323762849,1714254631775,-150.0,0.00010877,2]
[323762850,1714254631785,-10267.13142508,0.000109,2]
[323762852,1714254631796,-3660.94977492,0.000109,2]
[323762853,1714254631808,-155.0,0.000109,2]
[323762854,1714254631818,-5922.9229,0.000109,2]
[323762855,1714254631827,-583.7483,0.000109,2]
[323762856,1714254631836,-2750.0,0.00011,3]
[323762857,1714254631846,-155.18,0.00011506,10]
[323762858,1714254631856,-235.08,0.00011529,2]
[323762859,1714254631865,-1638.61,0.00011612,2]
[323762860,1714254631875,-1138.77322123,0.0001173,2]
[323762861,1714254631892,-16470.10677877,0.0001173,2]
[323762862,1714254631901,-4823.72,0.00011772,2]
[323762863,1714254631912,-250.0,0.0001187,2]
[323762864,1714254631922,-1369.04,0.00011903,2]
[323762865,1714254631932,-150.99,0.00011914,2]
[323762866,1714254631941,-6982.66,0.00011914,2]
[323762867,1714254631950,-499.99,0.00011914,2]
[323762868,1714254631960,-248.84,0.00011973,2]
[323762869,1714254631969,-447.85,0.00012069,2]
[323762870,1714254631979,-29301.0,0.00012115,2]
[323762871,1714254631988,-166.18,0.00012206,2]
[323762872,1714254631999,-166.95,0.0001224,2]
[323762873,1714254632008,-928.0,0.00012328,2]
[323762874,1714254632018,-1745.88,0.00012352,2]
[323762875,1714254632027,-10000.0,0.000128,2]
[323762876,1714254632037,-1000.0,0.00012896,2]
[323762877,1714254632046,-500.0,0.00012896,2]
[323762878,1714254632066,-773.0445,0.00012899,2]
[323762879,1714254632077,-264.0218,0.00012899,2]
[323762880,1714254632087,-3336.1821,0.00012899,2]
[323762881,1714254632096,-7500.0,0.00012899,2]
[323762882,1714254632106,-1000.0,0.00012899,2]
[323762883,1714254632116,-367.0099,0.000129,2]
[323762884,1714254632126,-15880.0044,0.000129,2]
[323762885,1714254632135,-1000.0,0.000129,2]
[323762886,1714254632145,-10000.0,0.000129,2]
[323762887,1714254632156,-4846.53990605,0.000129,2]
[323762889,1714254632165,-802.54032124,0.000129,2]
[323762890,1714254632176,-150.0,0.00012932,2]
[323762891,1714254632186,-150.0,0.00012932,2]
[323762892,1714254632197,-150.0,0.00012932,2]
[323762893,1714254632206,-150.0,0.00012932,2]
[323762894,1714254632216,-150.0,0.00012932,2]
[323762895,1714254632226,-206.97,0.00012932,2]
[323762896,1714254632235,-235.08,0.00012971,2]
[323762897,1714254632244,-231.63629392,0.00012997,2]
[323762898,1714254632253,-190.0,0.00012997,2]
[323762899,1714254632262,-5000.0,0.00012998,2]
[323762900,1714254632271,-2067.13,0.00012998,2]
[323762901,1714254632281,-350.24935814,0.00012999,2]
[323762902,1714254632290,-317.01746459,0.00012999,2]
[323762903,1714254632299,-1061.01702893,0.00012999,2]
[323762904,1714254632308,-219083.91454422,0.00012999,2]
[323762905,1714254632330,-926.73,0.00012999,2]
[323762906,1714254632450,-276.4710823,0.00012999,2]
[323762907,1714254632461,-320.98435717,0.00012999,2]
[323762908,1714254632492,-784.5,0.00012999,2]
[323762912,1714254638065,-19778.08680853,0.00012999,2]
[323762913,1714254638077,-1624.20869898,0.00012999,2]
[323762914,1714254638089,-260.47150784,0.00012999,2]
[323762915,1714254638101,-1429000.7032745,0.00012999,2]
[323762916,1714254638110,-1298288.38001853,0.00013,2]
[323762917,1714254638119,-1549447.18382472,0.00013,2]
[323762918,1714254638131,-112274.76776354,0.00013,2]
[323762919,1714254638142,-385.38170658,0.00013,2]
[323762920,1714254638153,-1327.3,0.00013,2]
[323762927,1714254642209,-7500.0,0.00012899,2]
[323762928,1714254642222,-175.12467907,0.00012999,2]
[323762929,1714254642233,-8425.63225253,0.00013,2]
[323762930,1714254642264,-953.56826015,0.00013,2]
[323762931,1714254642275,-1133.07,0.00013,2]
[323762932,1714254642319,-647247.25636812,0.00013,2]
[323762933,1714254642330,-1578.71698897,0.00013,2]
[323762934,1714254642374,-1889.5215,0.00013,2]
[323762935,1714254642385,-596.12154197,0.00013,2]
[323762936,1714254642396,-502.8502248,0.00013,2]
[323762937,1714254642430,-774.1338722,0.00013,2]
[323762939,1714254642442,-1935918.83613155,0.00013,2]
[323762941,1714254642451,-470862.15958429,0.00013,2]
[323762943,1714254642460,-2000.0,0.00013,2]
[323762944,1714254642470,-500.0,0.00013,2]
[323762945,1714254642480,-390.85133204,0.00013,2]
[323762947,1714254642490,-300.0,0.00013,2]
[323762949,1714254642499,-531.0,0.00013,2]
[323762951,1714254642509,-300.0,0.00013,2]
[323762953,1714254642519,-823.0,0.00013,2]
[323762955,1714254642528,-307.0,0.00013,2]
[323762957,1714254642538,-203.0,0.00013,2]
[323762959,1714254642547,-203.0,0.00013,2]
[323762961,1714254642558,-203.0,0.00013,2]
[323762963,1714254642567,-203.0,0.00013,2]
[323762965,1714254642577,-2000.0,0.00013,2]
[323762967,1714254642586,-417.90886388,0.00013,2]
[323762969,1714254642596,-2800.0,0.00013,3]
[323762971,1714254642606,-2000.0,0.00013,2]
[323762973,1714254642616,-733.0,0.00013,2]
[323762975,1714254642625,-3000.0,0.00013,2]
[323762979,1714254642634,-1003.28,0.00013,2]
[323762982,1714254642643,-257.321851,0.00013,2]
[323762984,1714254642653,-928.0,0.00013013,2]
[323762987,1714254642662,-630.0,0.000131,2]
[323762989,1714254642671,-2157.93,0.00013151,2]
[323762991,1714254642680,-1798.27,0.00013151,2]
[323762993,1714254642689,-1498.56,0.00013151,2]
[323762995,1714254642698,-1248.8,0.00013151,2]
[323762996,1714254642708,-1040.67,0.00013151,2]
[323762998,1714254642717,-1108.68,0.000133,5]
[323763000,1714254642726,-373.04,0.000134,2]
[323763002,1714254642735,-8567.38,0.00013425,2]
[323763004,1714254642744,-248.84,0.0001347,2]
[323763006,1714254642753,-1306.0,0.000135,3]
[323763007,1714254642762,-733.0,0.000135,2]
[323763008,1714254642771,-150.0,0.00013569,2]
[323763009,1714254642780,-150.0,0.00013576,2]
[323763010,1714254642790,-928.0,0.00013698,2]
[323763011,1714254642799,-1000.0,0.00013698,5]
[323763012,1714254642810,-1000.0,0.00013698,5]
[323763013,1714254642819,-320.93863975,0.00013698,5]
[323763014,1714254642829,-200.0,0.00013699,2]
[323763015,1714254642838,-200.0,0.00013699,2]
[323763016,1714254642847,-200.0,0.00013699,2]
[323763017,1714254642857,-200.0,0.00013699,2]
[323763018,1714254642866,-200.0,0.00013699,2]
[323763019,1714254642876,-200.0,0.00013699,2]
[323763020,1714254642885,-200.0,0.00013699,2]
[323763021,1714254642895,-200.0,0.00013699,2]
[323763022,1714254642904,-200.0,0.00013699,2]
[323763023,1714254642913,-200.0,0.00013699,2]
[323763024,1714254642922,-200.0,0.00013699,2]
[323763025,1714254642931,-200.0,0.00013699,2]
[323763026,1714254642940,-200.0,0.00013699,2]
[323763027,1714254642949,-200.0,0.00013699,2]
[323763028,1714254642959,-200.0,0.00013699,2]
[323763029,1714254642968,-200.0,0.00013699,2]
[323763030,1714254642979,-200.0,0.00013699,2]
[323763031,1714254642988,-200.0,0.00013699,2]
[323763032,1714254642997,-1000.0,0.00013699,2]
[323763033,1714254643006,-1000.0,0.00013699,2]
[323763034,1714254643016,-1000.0,0.00013699,2]
[323763035,1714254643026,-1000.0,0.00013699,2]
[323763036,1714254643037,-1000.0,0.00013699,2]
[323763037,1714254643046,-1000.0,0.00013699,2]
[323763038,1714254643057,-1000.0,0.00013699,2]
[323763039,1714254643066,-1000.0,0.00013699,2]
[323763040,1714254643077,-1000.0,0.00013699,2]
[323763041,1714254643087,-1000.0,0.00013699,2]
[323763042,1714254643098,-1000.0,0.00013699,2]
[323763043,1714254643108,-1000.0,0.00013699,2]
[323763044,1714254643118,-1000.0,0.00013699,2]
[323763045,1714254643127,-1000.0,0.00013699,2]
[323763046,1714254643136,-1000.0,0.00013699,2]
[323763047,1714254643146,-1000.0,0.00013699,2]
[323763048,1714254643155,-1000.0,0.00013699,2]
[323763049,1714254643165,-1000.0,0.00013699,2]
[323763050,1714254643174,-1000.0,0.00013699,2]
[323763051,1714254643183,-1000.0,0.00013699,2]
[323763052,1714254643192,-1000.0,0.00013699,2]
[323763053,1714254643201,-1000.0,0.00013699,2]
[323763054,1714254643210,-1000.0,0.00013699,2]
[323763055,1714254643219,-1000.0,0.00013699,2]
[323763056,1714254643229,-1000.0,0.00013699,2]
[323763057,1714254643238,-1000.0,0.00013699,2]
[323763058,1714254643247,-1000.0,0.00013699,2]
[323763059,1714254643256,-1000.0,0.00013699,2]
[323763060,1714254643265,-1000.0,0.00013699,2]
[323763061,1714254643274,-1000.0,0.00013699,2]
[323763062,1714254643283,-1000.0,0.00013699,2]
[323763063,1714254643292,-177.7,0.00013699,2]
[323763064,1714254643301,-200.0,0.00013699,2]
[323763065,1714254643310,-1000.0,0.00013699,2]
[323763066,1714254643320,-1000.0,0.00013699,2]
[323763067,1714254643329,-250.0,0.00013699,2]
[323763068,1714254643338,-1015.0,0.00013699,2]
[323763069,1714254643346,-2751.0,0.00013699,2]
[323763070,1714254643355,-1000.0,0.00013699,2]
[323763071,1714254643364,-1000.0,0.00013699,2]
[323763072,1714254643374,-1000.0,0.00013699,2]
[323763073,1714254643383,-1000.0,0.00013699,2]
[323763074,1714254643392,-1000.0,0.00013699,2]
[323763075,1714254643402,-1000.0,0.00013699,2]
[323763076,1714254643411,-500.0,0.00013699,2]
[323763077,1714254643420,-1240.21,0.000138,3]
[323763078,1714254643429,-1003.28,0.00013895,2]
[323763079,1714254643438,-2000.0,0.00014,2]
[323763080,1714254643447,-651.100531,0.00014,5]
[323763082,1714254643457,-2000.0,0.00014,2]
[323763084,1714254643466,-2000.0,0.00014,2]
[323763086,1714254643476,-733.0,0.00014,2]
[323763088,1714254643485,-284.99,0.00014,2]
[323763090,1714254643493,-284.99,0.00014,2]
[323763092,1714254643503,-284.99,0.00014,2]
[323763094,1714254643512,-284.99,0.00014,2]
[323763096,1714254643522,-284.99,0.00014,2]
[323763098,1714254643531,-284.99,0.00014,2]
[323763100,1714254643540,-284.99,0.00014,2]
[323763102,1714254643549,-284.99,0.00014,2]
[323763104,1714254643558,-284.99,0.00014,2]
[323763106,1714254643567,-284.99,0.00014,2]
[323763108,1714254643576,-284.99,0.00014,2]
[323763110,1714254643586,-284.99,0.00014,2]
[323763112,1714254643595,-284.99,0.00014,2]
[323763114,1714254643604,-284.99,0.00014,2]
[323763116,1714254643612,-284.99,0.00014,2]
[323763118,1714254643622,-284.99,0.00014,2]
[323763120,1714254643631,-284.99,0.00014,2]
[323763122,1714254643640,-284.99,0.00014,2]
[323763124,1714254643649,-284.99,0.00014,2]
[323763126,1714254643658,-284.99,0.00014,2]
[323763128,1714254643667,-284.99,0.00014,2]
[323763130,1714254643676,-284.99,0.00014,2]
[323763132,1714254643686,-284.99,0.00014,2]
[323763134,1714254643695,-284.99,0.00014,2]
[323763136,1714254643704,-284.99,0.00014,2]
[323763138,1714254643713,-284.99,0.00014,2]
[323763139,1714254643722,-284.99,0.00014,2]
[323763140,1714254643731,-284.99,0.00014,2]
[323763141,1714254643740,-284.99,0.00014,2]
[323763142,1714254643749,-284.99,0.00014,2]
[323763143,1714254643758,-284.99,0.00014,2]
[323763144,1714254643768,-284.99,0.00014,2]
[323763145,1714254643777,-284.99,0.00014,2]
[323763146,1714254643787,-284.99,0.00014,2]
[323763147,1714254643796,-284.99,0.00014,2]
[323763148,1714254643808,-284.99,0.00014,2]
[323763149,1714254643818,-284.99,0.00014,2]
[323763150,1714254643827,-284.99,0.00014,2]
[323763151,1714254643837,-284.99,0.00014,2]
[323763152,1714254643847,-284.99,0.00014,2]
[323763153,1714254643858,-284.99,0.00014,2]
[323763154,1714254643867,-284.99,0.00014,2]
[323763155,1714254643880,-284.99,0.00014,2]
[323763156,1714254643892,-284.99,0.00014,2]
[323763157,1714254643902,-284.99,0.00014,2]
[323763158,1714254643911,-284.99,0.00014,2]
[323763159,1714254643921,-284.99,0.00014,2]
[323763160,1714254643932,-284.99,0.00014,2]
[323763161,1714254643942,-284.99,0.00014,2]
[323763162,1714254643952,-284.99,0.00014,2]
[323763163,1714254643962,-284.99,0.00014,2]
[323763164,1714254643971,-284.99,0.00014,2]
[323763165,1714254643981,-284.99,0.00014,2]
[323763166,1714254643990,-284.99,0.00014,2]
[323763167,1714254644000,-284.99,0.00014,2]
[323763168,1714254644014,-284.99,0.00014,2]
[323763169,1714254644024,-284.99,0.00014,2]
[323763170,1714254644033,-284.99,0.00014,2]
[323763171,1714254644042,-284.99,0.00014,2]
[323763172,1714254644051,-284.99,0.00014,2]
[323763173,1714254644062,-284.99,0.00014,2]
[323763174,1714254644073,-284.99,0.00014,2]
[323763175,1714254644082,-284.99,0.00014,2]
[323763176,1714254644092,-284.99,0.00014,2]
[323763177,1714254644102,-284.99,0.00014,2]
[323763178,1714254644113,-284.99,0.00014,2]
[323763179,1714254644122,-284.99,0.00014,2]
[323763180,1714254644132,-284.99,0.00014,2]
[323763181,1714254644141,-284.99,0.00014,2]
[323763182,1714254644151,-284.99,0.00014,2]
[323763183,1714254644161,-284.99,0.00014,2]
[323763184,1714254644172,-284.99,0.00014,2]
[323763185,1714254644183,-284.99,0.00014,2]
[323763186,1714254644192,-284.99,0.00014,2]
[323763187,1714254644202,-284.99,0.00014,2]
[323763188,1714254644211,-284.99,0.00014,2]
[323763189,1714254644221,-284.99,0.00014,2]
[323763190,1714254644231,-284.99,0.00014,2]